Cogmind - Beta 15 @@@ ROGUE MODE // 2025.10.19 @ 13:52:18 Player: DietSnapple Result: Destroyed by Y-54 Guardian with Gatling Laser Performance ------------- Evolutions (0) 0 Regions Visited (3) 600 Robots Destroyed (11) 55 Value Destroyed (402) 402 Prototype IDs (1) 20 Alien Tech Used (0) 0 Bonus (0) 0 TOTAL SCORE: 1077 Bonus ------- None Cogmind --------- Core Integrity 0/250 Matter 101/300 Energy 90/100 System Corruption 5% Temperature Cool (6) Movement Core (1400) Ox27 Location -7/Recycling Parts ------- > --- POWER (1+2) ------ (None) > --- PROPULSION (2) --- Light Treads > --- UTILITY (2) ------ Huge Storage Unit Power Bank > --- WEAPON (2) ------- (None) > --- INVENTORY (25) --- Subdweller Monowheel Disposable Heat Sink Small Storage Unit Light Humpback Subdweller Optics Subdweller Optics Seismic Detector Subdweller Beam Cannon Assault Rifle Light Assault Rifle Light Assault Rifle Subdweller Machine Gun Light Cannon Shrapnel Trap Peak State ------------ > --- POWER ------------ Ion Engine > --- PROPULSION ------- Wheel Wheel > --- UTILITY ---------- Huge Storage Unit Power Bank > --- WEAPON ----------- Grenade Launcher Ripper > --- INVENTORY -------- Subdweller Power Source Light Treads Light Treads Disposable Heat Sink Small Storage Unit Light Humpback Subdweller Optics Seismic Detector Subdweller Laser Assault Rifle Light Assault Rifle Light Assault Rifle Subdweller Machine Gun Light Cannon Shrapnel Trap [Rating: 20] Favorites ----------- Power Ion Engine Engine Ion Engine Propulsion Light Treads Treads Light Treads Wheel Wheel Utility Small Storage Unit Device Seismic Detector Storage Small Storage Unit Weapon Grenade Launcher Energy Gun Subdweller Laser Ballistic Gun Light Assault Rifle Ballistic Cannon Light Cannon Launcher Grenade Launcher Slashing Weapon Ripper Build | -11 -10 -10 -7 ------- Run | Yrd Mat Sub Rec Slots Evolved . | . . . . Power . | . . . . Propulsion . | . . . . Utility . | . . . . Weapon . | . . . . Parts Attached 19 | 7 4 8 . Power 4 | 2 . 2 . Engine 4 | 2 . 2 . Core . | . . . . Reactor . | . . . . Propulsion 4 | 2 . 2 . Treads 2 | 2 . . . Leg . | . . . . Wheel 2 | . . 2 . Hover . | . . . . Flight . | . . . . Utility 4 | 1 1 2 . Device 2 | . 1 1 . Storage 2 | 1 . 1 . Processor . | . . . . Hackware . | . . . . Protection . | . . . . Artifact . | . . . . Weapon 7 | 2 3 2 . Energy Gun 1 | . . 1 . Energy Cannon . | . . . . Ballistic Gun 3 | 2 1 . . Ballistic Cannon 1 | . 1 . . Launcher 1 | . 1 . . Special Weapon . | . . . . Impact Weapon . | . . . . Slashing Weapon 1 | . . 1 . Piercing Weapon . | . . . . Special Melee Weapon . | . . . . Unidentified Prototypes 1 | . . 1 . Parts Lost 9 | . . 6 3 Power 3 | . . 2 1 Propulsion 3 | . . 2 1 Utility . | . . . . Weapon 3 | . . 2 1 Highest Loss Streak 6 | . . 6 3 To Critical Strikes . | . . . . Average Backups 9 | 1 5 10 13 Power . | . 1 . . Propulsion 1 | 1 2 1 1 Utility 2 | . . 3 6 Weapon 4 | . 2 4 6 Tool/Special . | . . . . Unused Backups 7 | . . . 7 Power . | . . . . Propulsion 1 | . . . 1 Utility 4 | . . . 4 Weapon 2 | . . . 2 Tool/Special . | . . . . Average Slot Usage (%) 83 | . 97 81 59 Engine 12 | . 14 12 9 Treads 22 | . 28 22 20 Wheel 1 | . . 1 . Device 11 | . 11 12 10 Storage 12 | . 14 12 10 Energy Gun 3 | . . 4 10 Ballistic Gun 3 | . 25 . . Ballistic Cannon 6 | . 1 7 . Launcher 6 | . 1 8 . Peak Build Rating 20 | 6 7 20 18 Average Rating 11 | 4 6 12 17 On Entrance 7 | . 6 7 18 Naked Turns . | . . . . Heaviest Build 96 | 13 17 96 92 Greatest Support 40 | 40 40 40 40 Greatest Overweight (x) 27 | . . 9 27 Average Overweight (x) . | . . . 2 Largest Inventory Capacity 25 | 8 8 25 25 Average Capacity 15 | 6 8 16 25 Most Carried 18 | 4 7 18 15 Average Carried 10 | 2 5 11 15 Final Capacity 25 | 8 8 25 25 Final Carried 15 | 4 7 15 15 Class Distribution -------------------- 100% | Mutant Dominant Class ---------------- Mutant | -10/Materials Mutant | -10/Subcaves Mutant | -7/Recycling Resources | -11 -10 -10 -7 ----------- Run | Yrd Mat Sub Rec Matter Collected 632 | 231 101 300 . Remotely . | . . . . Salvage Created 267 | . 122 145 . Parts 18 | . 7 11 . Haulers Intercepted . | . . . . Recyclers Shooed . | . . . . Parts Field Recycled . | . . . . Retrieved Matter . | . . . . Parts Self-Destructed 10 | . . 10 . Prevented . | . . . . Kills | -11 -10 -10 -7 ------- Run | Yrd Mat Sub Rec Combat Hostiles Destroyed 9 | . 3 6 . Guns 4 | . 3 1 . AOE 5 | . . 5 . Classes Destroyed 3 | . 1 2 . Turret 2 | . . 2 . Grunt 3 | . 3 . . Subdweller 6 | . . 6 . Best Kill Streak 2 | . 2 2 . Combat Bots Only 2 | . 2 2 . Max Kills in Single Turn 1 | . 1 1 . Gunslinging . | . . . . Exploded 1 | . . 1 . Melee . | . . . . Uniques/NPCs Destroyed . | . . . . Combat | -11 -10 -10 -7 -------- Run | Yrd Mat Sub Rec Hostile Shots Fired 105 | . 12 27 66 Missed 39 | . 5 7 27 Hits 66 | . 7 20 39 Projectile 66 | . 7 20 39 Critical Strikes 2 | . . 2 . Damage Taken 1130 | . 75 768 287 Core 255 | . 21 184 50 Absorbed by Shields . | . . . . Core Remaining (%) 100 | 100 . . . Volleys Fired 55 | . 17 35 3 Largest 2 | . 2 1 1 Hottest 60 | . 40 60 60 Shots Fired 70 | . 30 37 3 Gun 36 | . 26 7 3 Cannon 5 | . 4 1 . Launcher 29 | . . 29 . Special . | . . . . Kinetic 31 | . 30 1 . Thermal 10 | . . 7 3 Explosive 29 | . . 29 . Electromagnetic . | . . . . Robot Hit Streak 8 | . 8 6 7 Robot Miss Streak 2 | . 1 2 1 Penetration Max . | . . . . Secondary Targets . | . . . . Shots Hit Robots 28 | . 20 6 2 Core Hits 27 | . 5 22 . Critical Kills . | . . . . Critical Parts Destroyed . | . . . . Critical Strikes . | . . . . Melee Attacks 2 | . . 2 . Impact . | . . . . Slashing 2 | . . 2 . Piercing . | . . . . Sneak Attacks . | . . . . Combat Hostiles . | . . . . Follow-up Attacks . | . . . . Damage Inflicted 1034 | . 205 785 44 Guns 347 | . 205 98 44 Cannons . | . . . . Explosions 687 | . . 687 . Melee . | . . . . Ramming . | . . . . Kinetic 205 | . 205 . . Thermal 142 | . . 98 44 Explosive 687 | . . 687 . Electromagnetic . | . . . . Impact . | . . . . Slashing . | . . . . Piercing . | . . . . Highest Corruption 5 | . . 5 5 Average Corruption 5 | . . 5 5 Corruption Purged . | . . . . Corruption Blocked . | . . . . Effects 41 | . . 36 5 Message Errors 12 | . . 10 2 Matter Fused 13 | . . 12 1 Heat Flow Errors 1 | . . 1 . Energy Discharges 5 | . . 5 . Data Loss (minor) 3 | . . 3 . Data Loss (major) 3 | . . 2 1 Misfires 2 | . . 2 . Alerts 2 | . . 1 1 Overload Shots . | . . . . Overflow Damage 3 | . . 3 . Projectiles . | . . . . Explosions 3 | . . 3 . Melee . | . . . . Knockbacks . | . . . . Impact . | . . . . Kinetic . | . . . . Secondary . | . . . . Self-Inflicted Damage . | . . . . Shots . | . . . . Rammed . | . . . . Targets Rammed . | . . . . Kicked . | . . . . Crushed . | . . . . Highest Temperature 216 | . 6 216 54 Average Temperature 41 | . 6 105 24 Received Heat Transfer 246 | . 42 108 96 Siege Activations . | . . . . Martial Activations . | . . . . Shielding Activations . | . . . . Robots Disrupted . | . . . . Combat Hostiles . | . . . . Robots Corrupted . | . . . . Combat Hostiles . | . . . . Parts Fried . | . . . . Impact Corruptions . | . . . . Robots Melted . | . . . . Combat Hostiles . | . . . . Parts Melted . | . . . . Heat Transferred 175 | . . 125 50 Parts Sabotaged . | . . . . Parts Stolen . | . . . . Parts Stripped . | . . . . Power Chain Reactions . | . . . . Alert | -11 -10 -10 -7 ------- Run | Yrd Mat Sub Rec Maximum Alert Level . | . . . . Low Security (%) 100 | 100 100 . 100 Level 1 . | . . . . Level 2 . | . . . . Level 3 . | . . . . Level 4 . | . . . . Level 5 . | . . . . High Security . | . . . . Max Security . | . . . . Peak Influence 40 | . 40 . . Initial . | . . . . Average 3 | . 5 . . Influence Increases 290 | . 85 205 . Destroy 0b10 Robot/C 100 | . 60 40 . Destroy Leader 20 | . 20 . . Successful Hack 5 | . 5 . . Lose Combat Pursuer 165 | . . 165 . Influence Decreases 290 | . 85 205 . Time Decay 290 | . 85 205 . Squads Dispatched 5 | . 5 . . Investigation 3 | . 3 . . Extermination . | . . . . Reinforcement 2 | . 2 . . Assault . | . . . . Garrison . | . . . . Intercept . | . . . . Searches Triggered . | . . . . Construction Impeded . | . . . . Haulers Reinforced . | . . . . Active Scanning Responses . | . . . . Cargo Convoy Interrupts . | . . . . Stealth | -11 -10 -10 -7 --------- Run | Yrd Mat Sub Rec Distress Signals . | . . . . Communications Jammed . | . . . . Distress Signals . | . . . . Times Spotted 12 | . 5 6 1 Peak Tracking Total 2 | . 2 2 1 Tactical Retreats 2 | . . 2 . Traps | -11 -10 -10 -7 ------- Run | Yrd Mat Sub Rec Traps Triggered 1 | . . 1 . Indirectly . | . . . . Trap Hack Attempts . | . . . . Triggered . | . . . . Disarmed . | . . . . Reprogrammed . | . . . . Reused . | . . . . Traps Extracted . | . . . . Installed . | . . . . Triggered . | . . . . Most Traps Carried 1 | . . 1 1 Machines | -11 -10 -10 -7 ---------- Run | Yrd Mat Sub Rec Machines Disabled 4 | . . 4 . Max in Single Turn 2 | . . 2 . Machines Repaired . | . . . . Machines Dismantled . | . . . . Machines Sabotaged . | . . . . Overloaded Fab Kills . | . . . . Hacking | -11 -10 -10 -7 --------- Run | Yrd Mat Sub Rec Machines Accessed 6 | . 3 2 1 Terminals 4 | . 3 . 1 Fabricators . | . . . . Repair Stations . | . . . . Recycling Units . | . . . . Scanalyzers . | . . . . Garrison Access . | . . . . Total Hacks 21 | . 7 13 1 Successful 15 | . 2 13 . Failed 6 | . 5 . 1 Catastrophic 2 | . 1 . 1 Database Lockouts . | . . . . Manual 3 | . 2 . 1 Terminals 8 | . 7 . 1 Fabricators . | . . . . Repair Stations . | . . . . Recycling Units . | . . . . Scanalyzers . | . . . . Garrison Access . | . . . . Terminal Hacks 14 | . 1 13 . Record 13 | . . 13 . Locate Traps 1 | . 1 . . Fabricator Hacks . | . . . . Repair Station Hacks . | . . . . Recycling Unit Hacks . | . . . . Scanalyzer . | . . . . Garrison Access Hacks . | . . . . Unauthorized Hacks 1 | . 1 . . Terminals 1 | . 1 . . Botnet 1 | . 1 . . Fabricators . | . . . . Repair Stations . | . . . . Recycling Units . | . . . . Scanalyzers . | . . . . Garrison Access . | . . . . Data Cores Recovered . | . . . . Used . | . . . . Hacking Detections 3 | . 2 . 1 Full Trace Events 1 | . 1 . . Feedback Events . | . . . . Feedback Blocked . | . . . . Robot Schematics Acquired . | . . . . Robots Built . | . . . . Authchips . | . . . . Time . | . . . . Total Robot Build Rating . | . . . . Part Schematics Acquired . | . . . . Parts Built . | . . . . Authchips . | . . . . Time . | . . . . Total Part Build Rating . | . . . . Parts Repaired . | . . . . Time . | . . . . Parts Recycled . | . . . . Recycled Matter . | . . . . Retrieved Matter . | . . . . Retrieved Components . | . . . . Parts Scanalyzed . | . . . . Part Schematics Acquired . | . . . . Parts Damaged . | . . . . Bothacking | -11 -10 -10 -7 ------------ Run | Yrd Mat Sub Rec Used RIF Installer . | . . . . Robots Hacked . | . . . . Non-combat . | . . . . Combat . | . . . . Robot Hacks Applied . | . . . . Relay Couplers Released . | . . . . Fabnet Peak Effective % . | . . . . Robots Rewired . | . . . . Allies Hacked . | . . . . Hacks Repelled . | . . . . Allies | -11 -10 -10 -7 -------- Run | Yrd Mat Sub Rec Total Allies . | . . . . Largest Group . | . . . . Highest-Rated Group . | . . . . Highest-Rated Ally . | . . . . Total Orders . | . . . . Ally Attacks . | . . . . Total Damage . | . . . . Kills . | . . . . Allies Corrupted . | . . . . Allies Melted . | . . . . Intel | -11 -10 -10 -7 ------- Run | Yrd Mat Sub Rec Active Infowar (turns) 2519 | . 540 1979 . Seismic 2519 | . 540 1979 . Robot Analysis Total . | . . . . Derelict Logs Recovered 2 | . . 2 . Drone Launches . | . . . . Drone Recoveries . | . . . . Exploration | -11 -10 -10 -7 ------------- Run | Yrd Mat Sub Rec Turns Passed 4685 | 118 668 3768 131 Spaces Moved 2326 | 75 378 1834 39 Core 14 | 13 . . 1 Treads 2114 | 62 378 1636 38 Legs . | . . . . Wheels 198 | . . 198 . Hover . | . . . . Flight . | . . . . Fastest Speed 50 | 50 160 140 320 Average Speed 193 | 140 160 199 347 Slowest Speed 1400 | 160 160 320 1400 Overloaded Moves . | . . . . Propulsion Burnouts . | . . . . Robots Hopped . | . . . . Potential Cave-ins . | . . . . Cave-ins Triggered 1 | . . 1 . Exploration Rate (%) 32 | 5 31 87 6 Regions Visited 3 Branch Regions 2 Pre-discovered Areas 3 | . . 3 . Known Exits Taken . | . . . . Unknown Exits Taken 3 | 1 1 1 . Scrap Searched 2 | . . 2 . Spaces Dug . | . . . . Terrain Destroyed 83 | . . 83 . Melee . | . . . . Projectile . | . . . . AOE 83 | . . 83 . Terrain Rammed . | . . . . Walls Destroyed . | . . . . Machines Disabled . | . . . . Actions | -11 -10 -10 -7 --------- Run | Yrd Mat Sub Rec Total 2439 | 84 412 1901 42 Wait 18 | . 11 7 . Move 2323 | 74 377 1833 39 Hop . | . . . . Pick Up 19 | 3 3 13 . Fast Attach 7 | 6 1 . . Attach 5 | . . 5 . Detach . | . . . . Swap 9 | 1 3 5 . Drop 1 | . . 1 . Fire 55 | . 17 35 3 Melee 2 | . . 2 . Ram . | . . . . Kick . | . . . . Crush . | . . . . Escape Stasis . | . . . . Rewire . | . . . . Trap . | . . . . Miscellaneous . | . . . . Route ------- -11/Scrapyard -10/Materials (discovered 3 exits: [*Mat] / [*Min] / *Sub) -10/Subcaves (discovered 3 exits: [*Mat x2] / *Rec) -7/Recycling History --------- Turn | Location | Event 13 | -11/Scrapyard | Discovered new exit (range 16) 119 | -11/Scrapyard | Entered Materials 120 | -10/Materials | Met a group of wandering Federalists 121 | -10/Materials | Discovered new exit (range 15) 306 | -10/Materials | Build established: Mutant 329 | -10/Materials | Discovered new exit (range 15) 504 | -10/Materials | Discovered new exit (range 9) 787 | -10/Materials | Entered Subcaves 788 | -10/Subcaves | Continued accompanying wandering Federalists (3) 788 | -10/Subcaves | Approached by a straggling Scientist 846 | -10/Subcaves | Discovered new exit (range 14) 871 | -10/Subcaves | Lost 4 allies 948 | -10/Subcaves | Learned location of Zion (-7) 969 | -10/Subcaves | Learned 2 Materials zone layouts 988 | -10/Subcaves | Met a Zionite searching for "candidates" 1561 | -10/Subcaves | Discovered new exit (range 6) 1576 | -10/Subcaves | Visited Clippyterm 1581 | -10/Subcaves | Learned location of Extension (-5) 1581 | -10/Subcaves | Learned Factory emergency access door positions 1866 | -10/Subcaves | Shifting Twisted Machinery released Piercing Trap 1962 | -10/Subcaves | Shifting Twisted Machinery released Sub. Power Source 2703 | -10/Subcaves | Visited 4L-MR0's lab 2743 | -10/Subcaves | Found Prototype Device 2766 | -10/Subcaves | Identified Power Bank 2768 | -10/Subcaves | Attached Power Bank, gained temporary slots: Power x3 2968 | -10/Subcaves | Crushed by falling debris 2968 | -10/Subcaves | Core integrity fell below 50% 3009 | -10/Subcaves | Core integrity fell below 20% 3045 | -10/Subcaves | Lost 6 parts (2p2n2w) 3710 | -10/Subcaves | Shifting Twisted Machinery released Sub. Beam Cannon 3725 | -10/Subcaves | Discovered new exit (range 9) 4555 | -10/Subcaves | Entered Recycling 4556 | -7/Recycling | Met a Zionite searching for Scraptown 4686 | -7/Recycling | Destroyed by Y-54 Guardian with Gatling Laser Last Messages --------------- 04488_ System corrupted: Heat flow error (+259). 04520_ 6TCULI#G4#=YXEF#1/#TZQ,3&HZ3G PP LOCATION=UNKNOWN GOAL=ESCAPE 04556_ OB-0E3(z): "You there! You wouldn't happen to know where Scraptown is, do you?" 04557_ OB-0E3(z): "I've heard great things about that place, but almost no one seems to know where to find it, only that you access it somewhere from Recycling here." 04558_ OB-0E3(z): "Anyway I've been here searching too long already, time to slink back to the caves before I'm caught. You'd best do the same." 04559_ System corrupted: Matter fused (-9). 04594_ Connecting with Terminal... 04594_ Current location identified: Recycling 04615_ KZ #C5